bitfinex/quotes_SOLUSD_20250617
["timestamp","ask_amount","ask_price","bid_price","bid_amount"]
[1750175819358,28.92,147.53,147.52,11.58032356]
[1750175819541,146.6788,147.54,147.52,11.58032356]
[1750175819960,146.6788,147.54,147.51,11.58032356]
[1750175820466,158.25912356,147.54,147.5,11.58032356]
[1750175820855,28.92,147.53,147.5,11.58032356]
[1750175821377,40.50032356,147.53,147.48,32.78047248]
[1750175821673,11.58032356,147.5,147.46,11.58032356]
[1750175821835,40.50032356,147.5,147.46,11.58032356]
[1750175822041,40.50032356,147.5,147.44,6.78222539]
[1750175822042,28.92,147.5,147.48,11.58032356]
[1750175822268,28.92,147.5,147.44,6.78222539]
[1750175822646,11.58032356,147.46,147.41,12.92122276]
[1750175822845,28.92,147.46,147.43,11.58032356]
[1750175823064,146.6788,147.49,147.45,11.58032356]
[1750175823273,146.6788,147.53,147.48,11.58032356]
[1750175823475,146.6788,147.53,147.51,11.58032356]
[1750175823653,8.1254,147.58,147.51,11.58032356]
[1750175823654,37.0454,147.58,147.51,11.58032356]
[1750175823978,37.233375,147.58,147.51,11.58032356]
[1750175824272,37.233375,147.58,147.55,11.58032356]
[1750175824668,37.233375,147.58,147.5,0.28432314]
[1750175824863,19.89369856,147.58,147.54,11.58032356]
[1750175825051,48.81369856,147.58,147.54,11.58032356]
[1750175825456,11.58032356,147.57,147.53,11.58032356]
[1750175825642,11.58032356,147.57,147.51,6.77876974]
[1750175825864,48.81369856,147.58,147.54,11.58032356]
[1750175826089,37.233375,147.58,147.55,11.58032356]
[1750175826393,48.81369856,147.58,147.51,6.77876974]
[1750175826564,48.81369856,147.58,147.54,11.58032356]
[1750175826766,48.81369856,147.58,147.52,6.77870777]
[1750175827092,11.58032356,147.57,147.53,11.58032356]
[1750175827396,28.92,147.56,147.54,11.58032356]
[1750175828088,165.03483402,147.59,147.55,11.58032356]
[1750175828270,153.45451046,147.59,147.56,11.58032356]
[1750175828473,28.92,147.58,147.56,11.58032356]
[1750175828873,193.95483402,147.59,147.55,11.58032356]
[1750175829295,175.5988,147.59,147.54,6.77765052]
[1750175829463,187.17912356,147.59,147.55,11.58032356]
[1750175829969,175.5988,147.59,147.56,11.58032356]
[1750175830167,146.6788,147.59,147.57,11.58032356]
[1750175830365,146.6788,147.59,147.58,11.58032356]
[1750175832021,61.58287285,147.64,147.58,11.58032356]
[1750175832022,153.3588,147.65,147.58,11.58032356]
[1750175832164,183.05565537,147.64,147.61,11.58032356]
[1750175832494,4.98457024,147.63,147.61,11.58032356]
[1750175833421,4.98457024,147.63,147.6,11.58032356]
[1750175833922,11.7582904,147.63,147.6,11.58032356]
[1750175835018,11.7582904,147.63,147.61,11.58032356]
[1750175835324,182.35218928,147.64,147.62,11.58032356]
[1750175835531,182.35218928,147.64,147.61,11.58032356]
[1750175836099,193.93251284,147.64,147.6,11.58032356]
[1750175836307,16.56640072,147.63,147.59,11.58032356]
[1750175836592,11.58032356,147.6,147.54,11.58032356]
[1750175836808,6.7759859,147.58,147.54,11.58032356]
[1750175837217,6.7759859,147.58,147.53,34.43466672]
[1750175837218,6.7759859,147.58,147.53,8.43466672]
[1750175837403,6.7759859,147.58,147.55,11.58032356]
[1750175838850,6.77569422,147.59,147.56,11.58032356]
[1750175839122,35.67525406,147.6,147.57,11.58032356]
[1750175839527,28.9,147.6,147.57,11.58032356]
[1750175839701,153.45357309,147.61,147.58,11.58032356]
[1750175840234,165.03389665,147.61,147.57,11.58032356]
[1750175840441,153.45357309,147.61,147.58,11.58032356]
[1750175840936,146.6788,147.61,147.59,11.58032356]
[1750175841316,146.6788,147.61,147.6,11.58032356]
[1750175841723,153.45356189,147.61,147.58,11.58032356]
[1750175842738,182.35356189,147.61,147.57,11.58032356]
[1750175843234,182.35356189,147.61,147.58,11.58032356]
[1750175843530,153.45113752,147.66,147.6,11.58032356]
[1750175843709,2.49464125,147.65,147.59,26.0]
[1750175843910,11.58032356,147.64,147.58,6.4425]
[1750175844116,40.48032356,147.64,147.59,11.58032356]
[1750175844312,11.58032356,147.62,147.58,11.58032356]
[1750175844568,11.58032356,147.63,147.57,26.0]
[1750175844705,11.58032356,147.63,147.59,11.58032356]
[1750175844907,11.58032356,147.63,147.56,7.06122745]
[1750175845107,11.58032356,147.63,147.59,11.58032356]
[1750175845343,47.25363676,147.64,147.59,18.35573896]
[1750175845638,4.9924026,147.63,147.59,18.35573896]
[1750175846029,146.6788,147.66,147.62,11.58032356]
[1750175846352,4.9960883,147.65,147.63,11.58032356]
[1750175846710,4.9960883,147.65,147.64,11.58032356]
[1750175846911,13.08876639,147.67,147.64,11.58032356]
[1750175847125,13.08876639,147.67,147.64,26.0]
[1750175847303,13.08876639,147.67,147.66,11.58032356]
[1750175847823,13.08876639,147.67,147.62,43.21922833]
[1750175847824,13.08876639,147.67,147.62,26.0]
[1750175848036,31.44105808,147.67,147.63,11.58032356]
[1750175848210,53.56908995,147.67,147.63,11.58032356]
[1750175848413,48.76066674,147.67,147.63,11.58032356]
[1750175850239,60.3409903,147.67,147.63,11.58032356]
[1750175850416,4.98816489,147.66,147.63,11.58032356]
[1750175850620,60.3409903,147.67,147.63,11.58032356]
[1750175851726,11.58032356,147.66,147.62,11.58032356]
[1750175852239,11.58032356,147.63,147.59,11.58032356]
[1750175852425,40.46032356,147.63,147.59,11.58032356]
[1750175852619,28.88,147.63,147.59,11.58032356]
[1750175853323,28.88,147.63,147.59,18.35571567]
[1750175853631,13.08876639,147.67,147.62,37.58032356]
[1750175853836,19.09593421,147.75,147.62,37.58032356]
[1750175853837,7.47859337,147.72,147.66,11.58032356]
[1750175854062,14.24742825,147.74,147.65,0.28432314]
[1750175854224,14.24742825,147.74,147.71,11.58032356]
[1750175854446,25.82775181,147.74,147.7,11.58032356]
[1750175854739,28.88,147.73,147.65,18.933972]
[1750175854928,28.88,147.73,147.69,11.58032356]
[1750175855243,4.98495752,147.74,147.72,11.58032356]
[1750175855448,35.54,147.75,147.72,11.58032356]
[1750175856319,6.66,147.75,147.73,11.58032356]
[1750175856621,6.66,147.75,147.74,11.58032356]
[1750175856832,6.66,147.75,147.73,11.58032356]
[1750175857243,18.24032356,147.75,147.7,6.77037562]
[1750175857538,18.24032356,147.75,147.72,11.58032356]
[1750175857539,6.66,147.75,147.72,11.58032356]
[1750175858455,6.66,147.75,147.66,16.93078694]
[1750175858456,39.19882356,147.73,147.62,18.64964886]
[1750175858738,39.19882356,147.73,147.63,11.58032356]
[1750175858739,11.58032356,147.67,147.63,11.58032356]
[1750175859322,18.35223984,147.67,147.63,11.58032356]
[1750175859517,28.86,147.68,147.64,11.58032356]
[1750175859518,47.21184782,147.68,147.64,11.58032356]
[1750175859822,47.21184782,147.68,147.63,11.58032356]
[1750175860023,11.58032356,147.67,147.63,11.58032356]
[1750175860640,11.58032356,147.67,147.6,6.92882314]
[1750175860641,11.58032356,147.64,147.6,11.58032356]
[1750175860852,26.0,147.67,147.59,11.58032356]
[1750175860853,11.58032356,147.63,147.59,11.58032356]
[1750175861022,54.86,147.65,147.6,11.58032356]
[1750175861217,18.35355574,147.64,147.6,11.58032356]
[1750175861624,6.77323218,147.64,147.6,11.58032356]
[1750175862920,18.35355574,147.64,147.6,11.58032356]
[1750175863335,35.2866362,147.64,147.6,11.58032356]
[1750175863740,35.2866362,147.64,147.59,11.58032356]
[1750175864346,11.58032356,147.63,147.58,11.58032356]
[1750175864646,6.77460876,147.61,147.58,11.58032356]
[1750175866156,35.29145423,147.61,147.55,1.6025]
[1750175866530,35.29145423,147.61,147.57,11.58032356]
[1750175868639,35.29145423,147.61,147.55,1.74466157]
[1750175868839,6.77460876,147.61,147.57,11.58032356]
[1750175869740,18.35493232,147.61,147.57,11.58032356]
[1750175870135,18.35493232,147.61,147.55,11.58032356]
[1750175870136,11.58032356,147.6,147.55,11.58032356]
[1750175870335,11.58032356,147.6,147.56,11.58032356]
[1750175870744,18.35493232,147.61,147.57,11.58032356]
[1750175871254,6.77460876,147.61,147.55,11.58032356]
[1750175871457,18.35493232,147.61,147.56,11.58032356]
[1750175872263,18.35493232,147.61,147.54,6.91955586]
[1750175872442,18.35493232,147.61,147.57,11.58032356]
[1750175872955,18.35493232,147.61,147.56,11.58032356]
[1750175873669,18.35493232,147.61,147.57,11.58032356]
[1750175874538,146.6788,147.6,147.57,11.58032356]
[1750175875159,146.6788,147.6,147.58,11.58032356]
[1750175877632,6.66,147.63,147.59,11.58032356]
[1750175877856,6.66,147.63,147.62,11.58032356]
[1750175878056,146.6788,147.64,147.62,11.58032356]
[1750175880871,153.4521175,147.64,147.56,0.28432314]
[1750175881069,158.25912356,147.63,147.59,11.58032356]
[1750175881270,146.6788,147.63,147.6,11.58032356]
[1750175881442,146.6788,147.63,147.61,11.58032356]
[1750175882386,146.6788,147.63,147.6,6.77506775]
[1750175882683,146.6788,147.63,147.62,11.58032356]
[1750175883356,146.6788,147.63,147.6,6.77506775]
[1750175883357,146.6788,147.63,147.58,1.6017]
[1750175883566,158.25912356,147.63,147.59,11.58032356]
[1750175883743,146.6788,147.63,147.61,11.58032356]
[1750175884370,146.6788,147.67,147.62,18.35401485]
[1750175884582,146.6788,147.66,147.64,11.58032356]
[1750175885151,146.6788,147.66,147.65,11.58032356]
[1750175886576,146.6788,147.66,147.65,18.35309701]
[1750175890085,146.6788,147.66,147.63,18.35375142]
[1750175890672,146.6788,147.66,147.63,6.77342786]
[1750175890886,146.6788,147.66,147.63,18.35375142]
[1750175891086,40.42032356,147.65,147.59,35.58745187]
[1750175891285,28.84,147.65,147.6,11.58032356]
[1750175891489,158.25912356,147.64,147.59,11.58032356]
[1750175891659,40.42032356,147.63,147.59,11.58032356]
[1750175891866,187.09912356,147.64,147.59,18.35567124]
[1750175892275,187.09912356,147.64,147.6,11.58032356]
[1750175892482,146.6788,147.64,147.63,11.58032356]
[1750175894059,146.6788,147.64,147.59,6.77552679]
[1750175894263,146.6788,147.64,147.61,11.58032356]
[1750175894466,146.6788,147.64,147.63,11.58032356]
[1750175894971,146.6788,147.64,147.62,11.58032356]
[1750175895184,146.6788,147.64,147.63,11.58032356]
[1750175896063,146.6788,147.64,147.61,6.77460876]
[1750175896262,146.6788,147.64,147.63,11.58032356]
[1750175896487,146.6788,147.64,147.61,6.77460876]
[1750175896488,146.6788,147.64,147.62,11.58032356]
[1750175896801,146.6788,147.64,147.61,6.77460876]
[1750175897091,175.5188,147.64,147.6,11.58032356]
[1750175897587,175.5188,147.64,147.61,11.58032356]
[1750175897907,146.6788,147.64,147.63,11.58032356]
[1750175898105,146.6788,147.64,147.62,11.58032356]
[1750175899672,146.6788,147.64,147.63,11.58032356]
[1750175900164,146.6788,147.64,147.6,6.77492654]
[1750175900466,187.07912356,147.64,147.6,18.3552501]
[1750175900677,175.4988,147.64,147.62,11.58032356]
[1750175900897,146.6788,147.64,147.62,11.58032356]
[1750175901097,146.6788,147.64,147.63,11.58032356]
[1750175901700,146.6788,147.64,147.62,11.58032356]
[1750175902223,146.6788,147.64,147.62,18.35436234]
[1750175902636,146.6788,147.64,147.62,6.77403878]
[1750175902794,175.4988,147.64,147.58,6.77578749]
[1750175903126,146.6788,147.63,147.58,6.77578749]
[1750175903491,158.25912356,147.63,147.58,18.35611105]
[1750175903816,158.25912356,147.63,147.59,11.58032356]
[1750175904019,146.6788,147.63,147.6,11.58032356]
[1750175904528,146.6788,147.63,147.59,11.58032356]
[1750175905123,146.6788,147.63,147.57,6.77644507]
[1750175905300,40.40032356,147.62,147.58,11.58032356]
[1750175906001,28.82,147.62,147.59,11.58032356]
[1750175906233,187.07912356,147.63,147.59,11.58032356]
[1750175906893,187.07912356,147.63,147.59,18.35574453]
[1750175907089,146.6788,147.62,147.59,6.77542097]
[1750175907499,146.6788,147.62,147.6,11.58032356]
[1750175907705,146.6788,147.62,147.59,6.77542097]
[1750175907900,146.6788,147.62,147.59,18.35574453]
[1750175908096,146.6788,147.62,147.59,6.77542097]
[1750175908599,146.6788,147.62,147.58,11.58032356]
[1750175908817,187.07912356,147.62,147.57,6.77644507]
[1750175909115,187.07912356,147.62,147.58,11.58032356]
[1750175909494,187.07912356,147.62,147.57,18.35676863]
[1750175909691,187.07912356,147.62,147.58,11.58032356]
[1750175910015,175.4988,147.62,147.6,11.58032356]
[1750175910217,146.6788,147.62,147.6,11.58032356]
[1750175910429,146.6788,147.62,147.61,11.58032356]
[1750175910590,6.2394,147.66,147.62,6.77414984]
[1750175910591,146.6788,147.66,147.62,6.77414984]
[1750175910788,146.6788,147.66,147.64,11.58032356]
[1750175911020,146.6788,147.66,147.65,11.58032356]
[1750175911399,146.6788,147.66,147.63,0.28432314]
[1750175911595,146.6788,147.66,147.63,11.58032356]
[1750175911806,158.25912356,147.66,147.62,18.3544734]
[1750175912227,146.6788,147.66,147.62,18.3544734]
[1750175912526,146.6788,147.66,147.64,18.35341358]
[1750175912691,146.6788,147.66,147.65,11.58032356]
[1750175913625,146.6788,147.66,147.64,18.35341358]
[1750175914002,146.6788,147.66,147.61,6.77460876]
[1750175914202,158.25912356,147.66,147.62,11.58032356]
[1750175914618,187.05912356,147.66,147.62,11.58032356]
[1750175914923,175.4788,147.66,147.63,11.58032356]
[1750175915930,175.4788,147.66,147.64,11.58032356]
[1750175916237,146.6788,147.66,147.64,11.58032356]
[1750175918434,146.6788,147.66,147.63,18.35386276]
[1750175918603,175.4788,147.66,147.63,18.35386276]
[1750175918804,146.6788,147.66,147.63,18.35386276]
[1750175921928,158.25912356,147.66,147.61,6.77425977]
[1750175922109,4.99859749,147.65,147.62,26.0]
[1750175922316,4.99859749,147.65,147.62,37.58032356]
[1750175922733,4.99859749,147.65,147.62,44.35435308]
[1750175923110,4.99859749,147.65,147.63,11.58032356]
[1750175923646,11.58032356,147.64,147.6,6.77500468]
[1750175923807,11.58032356,147.64,147.6,18.35532824]
[1750175924309,16.58040975,147.64,147.6,18.35532824]
[1750175924735,5.00008619,147.64,147.6,18.35532824]
[1750175925735,47.15323367,147.65,147.6,18.35532824]
[1750175925736,5.0030849,147.63,147.6,6.77500468]
[1750175926030,5.00338403,147.64,147.61,11.58032356]
[1750175926234,16.58370759,147.64,147.6,18.35532824]
[1750175926931,10.00247864,147.63,147.59,44.35571185]
[1750175927164,16.58370759,147.63,147.59,44.35571185]
[1750175927502,16.57862537,147.62,147.59,26.0]
[1750175927706,16.57978473,147.62,147.59,26.0]
[1750175928631,11.58032356,147.6,147.56,11.58032356]
[1750175928950,16.57978473,147.61,147.57,26.0]
[1750175929149,11.77422196,147.61,147.56,6.77670484]
[1750175929456,11.58032356,147.58,147.54,6.77782296]
[1750175929609,11.58032356,147.58,147.54,18.35814652]
[1750175930134,33.7768355,147.59,147.54,18.35814652]
[1750175930436,16.56936505,147.58,147.54,18.35814652]
[1750175931344,28.78,147.59,147.56,11.58032356]
[1750175931944,28.78,147.59,147.57,11.58032356]
[1750175932119,6.62,147.62,147.58,11.58032356]
[1750175932437,146.6788,147.64,147.61,18.35475624]
[1750175932633,4.98774605,147.63,147.62,11.58032356]
[1750175932942,146.6788,147.64,147.62,11.58032356]
[1750175933353,146.6788,147.64,147.63,11.58032356]
[1750175933850,6.62,147.67,147.63,11.58032356]
[1750175934142,146.6788,147.68,147.65,11.58032356]
[1750175934317,146.6788,147.68,147.65,18.35294308]
[1750175934822,27.53937237,147.7,147.67,11.58032356]
[1750175935021,4.98969141,147.69,147.67,11.58032356]
[1750175935227,27.53937237,147.7,147.67,11.58032356]
[1750175935228,32.52906378,147.7,147.67,11.58032356]
[1750175935612,50.88011822,147.7,147.66,11.58032356]
[1750175935922,18.35105444,147.7,147.66,11.58032356]
[1750175936119,33.77161122,147.69,147.65,11.58032356]
[1750175936309,33.77161122,147.69,147.63,0.14216157]
[1750175936310,33.77161122,147.69,147.66,11.58032356]
[1750175936729,40.54276785,147.69,147.66,11.58032356]
[1750175937110,4.99264899,147.68,147.66,11.58032356]
[1750175937335,4.9933378,147.68,147.66,11.58032356]
[1750175937536,35.55115663,147.69,147.66,11.58032356]
[1750175937737,40.54331989,147.69,147.66,11.58032356]
[1750175937940,40.54331989,147.69,147.63,6.91578178]
[1750175938122,4.99028342,147.68,147.66,11.58032356]
[1750175938431,11.76189444,147.68,147.66,11.58032356]
[1750175938627,11.76260359,147.68,147.66,11.58032356]
[1750175939143,6.77161102,147.68,147.66,11.58032356]
[1750175939338,35.5511137,147.69,147.67,11.58032356]
[1750175939640,11.76263635,147.7,147.67,11.58032356]
[1750175939818,40.54263635,147.7,147.67,11.58032356]
[1750175940951,52.12295991,147.7,147.66,11.58032356]
[1750175941125,52.12295991,147.7,147.64,11.58032356]
[1750175941126,11.58032356,147.68,147.64,11.58032356]
[1750175941321,11.58032356,147.65,147.58,7.6799]
[1750175941545,146.6788,147.64,147.61,26.0]
[1750175941717,146.6788,147.64,147.63,11.58032356]
[1750175942235,28.78,147.67,147.63,11.58032356]
[1750175942431,28.78,147.67,147.61,26.0]
[1750175942432,153.45034931,147.68,147.65,11.58032356]
[1750175942747,153.45034931,147.68,147.64,11.58032356]
[1750175943470,11.58032356,147.66,147.61,26.0]
[1750175943767,11.58032356,147.65,147.61,11.58032356]
[1750175944433,28.32681368,147.66,147.62,11.58032356]
[1750175944639,11.76053797,147.66,147.62,11.58032356]
[1750175944843,16.74597791,147.66,147.63,11.58032356]
[1750175945052,28.32630147,147.66,147.62,11.58032356]
[1750175945231,23.34086153,147.66,147.62,11.58032356]
[1750175945429,4.9881045,147.66,147.64,11.58032356]
[1750175945648,35.53195889,147.67,147.64,11.58032356]
[1750175945837,35.53195889,147.67,147.63,11.58032356]
[1750175945838,52.09882585,147.67,147.63,11.58032356]
[1750175946043,47.11228245,147.67,147.63,11.58032356]
[1750175946550,153.2788,147.68,147.65,11.58032356]
[1750175946744,153.2788,147.68,147.66,11.58032356]
[1750175947051,146.6788,147.68,147.66,11.58032356]
[1750175947228,146.6788,147.68,147.65,11.58032356]
[1750175947849,153.45032064,147.68,147.64,11.58032356]
[1750175948443,11.58032356,147.67,147.63,11.58032356]
[1750175948650,11.58032356,147.67,147.61,32.77452333]
[1750175948856,11.58032356,147.66,147.62,37.58032356]
[1750175949039,11.58032356,147.66,147.62,11.58032356]
[1750175949925,6.77242432,147.66,147.62,11.58032356]
[1750175950130,52.09633154,147.66,147.62,11.58032356]
[1750175950331,35.53242432,147.66,147.62,11.58032356]
[1750175950527,40.51958132,147.66,147.62,11.58032356]
[1750175950761,16.56379571,147.65,147.61,11.58032356]
[1750175950959,40.51958132,147.66,147.62,11.58032356]
[1750175950960,47.11274788,147.66,147.62,11.58032356]
[1750175951256,16.56396832,147.65,147.61,11.58032356]
[1750175951557,168.23019086,147.65,147.61,11.58032356]
[1750175951758,158.25912356,147.65,147.6,11.58032356]
[1750175951960,6.77323218,147.64,147.6,11.58032356]
[1750175952459,165.03210059,147.65,147.61,11.58032356]
[1750175953238,165.03210059,147.65,147.59,32.77541853]
[1750175953239,146.6788,147.65,147.64,11.58032356]
[1750175953463,146.6788,147.65,147.6,0.28432314]
[1750175953668,146.6788,147.65,147.63,11.58032356]
[1750175954173,146.6788,147.65,147.63,18.35398391]
[1750175954759,146.6788,147.65,147.63,6.77366035]
[1750175954953,146.6788,147.65,147.63,18.35398391]
[1750175956556,146.6788,147.65,147.63,11.58032356]
[1750175957274,146.6788,147.65,147.61,6.77460876]
[1750175957473,146.6788,147.65,147.63,11.58032356]
[1750175957861,146.6788,147.65,147.61,6.77460876]
[1750175958064,146.6788,147.65,147.63,11.58032356]
[1750175959059,146.6788,147.65,147.62,6.77402258]
[1750175959270,146.6788,147.65,147.63,11.58032356]
[1750175959485,146.6788,147.65,147.64,11.58032356]
[1750175961082,146.6788,147.65,147.64,18.35355574]
[1750175961752,146.6788,147.65,147.64,11.58032356]
[1750175962076,146.6788,147.65,147.63,11.58032356]
[1750175962275,146.6788,147.65,147.63,18.35395715]
[1750175963153,146.6788,147.65,147.64,11.58032356]
[1750175964158,146.6788,147.7,147.64,30.51429556]
[1750175964357,146.6788,147.7,147.69,11.58032356]
[1750175964661,28.74,147.72,147.69,11.58032356]
[1750175964871,4.98349889,147.71,147.65,18.933972]
[1750175965067,9.97019087,147.72,147.7,11.58032356]
[1750175965480,16.56382245,147.71,147.66,6.77231477]
[1750175965776,45.30382245,147.71,147.66,6.77231477]
[1750175965983,40.32032356,147.71,147.67,11.58032356]
[1750175966579,40.30032356,147.71,147.67,18.35199827]
[1750175966778,40.30032356,147.71,147.67,6.77167471]
[1750175966974,40.30032356,147.71,147.67,18.35199827]
[1750175967158,40.30032356,147.71,147.67,6.77167471]
[1750175967360,47.07035802,147.71,147.67,18.35199827]
[1750175967767,40.30032356,147.71,147.67,18.35199827]
[1750175967966,45.28018409,147.71,147.67,18.35199827]
[1750175968370,28.72,147.71,147.67,18.35199827]
[1750175969868,28.72,147.71,147.67,3.35199827]
[1750175970379,28.72,147.71,147.68,11.58032356]
[1750175970682,28.72,147.71,147.69,11.58032356]
[1750175970885,146.6788,147.72,147.7,11.58032356]
[1750175971262,146.6788,147.72,147.66,23.70310171]
[1750175971762,146.6788,147.72,147.69,11.58032356]
[1750175972173,158.25912356,147.72,147.68,11.58032356]
[1750175972386,11.58032356,147.71,147.66,6.77231477]
[1750175972563,40.30032356,147.71,147.67,11.58032356]
[1750175972759,40.30032356,147.71,147.62,26.28432314]
[1750175972760,11.58032356,147.69,147.62,18.64964886]
[1750175973077,40.30032356,147.69,147.64,11.58032356]
[1750175973278,40.30032356,147.69,147.65,11.58032356]
[1750175973886,40.30032356,147.69,147.63,26.0]
[1750175974074,11.58032356,147.68,147.64,11.58032356]
[1750175974275,47.07140414,147.69,147.65,11.58032356]
[1750175974588,146.6788,147.7,147.63,6.77369098]
[1750175974589,146.6788,147.7,147.67,11.58032356]
[1750175974760,15.50991362,147.73,147.69,11.58032356]
[1750175974962,15.50991362,147.73,147.72,11.58032356]
[1750175975191,20.49322581,147.73,147.72,11.58032356]
[1750175975387,15.50991362,147.73,147.71,11.58032356]
[1750175975763,15.50991362,147.73,147.72,11.58032356]
[1750175976994,15.50991362,147.73,147.69,6.77093912]
[1750175977182,15.50991362,147.73,147.72,11.58032356]
[1750175977501,20.49030835,147.73,147.7,11.58032356]
[1750175978186,20.49178321,147.73,147.7,11.58032356]
[1750175978492,20.49178321,147.73,147.71,11.58032356]
[1750175979477,20.4903582,147.73,147.71,11.58032356]
[1750175979902,25.4731837,147.73,147.71,11.58032356]
[1750175980286,20.4903582,147.73,147.71,11.58032356]
[1750175980494,25.47151009,147.73,147.71,11.58032356]
[1750175980786,25.47151009,147.73,147.7,6.77037751]
[1750175980993,146.6788,147.72,147.67,26.0]
[1750175981188,146.6788,147.72,147.69,6.73973652]
[1750175981809,146.6788,147.72,147.68,6.73973652]
[1750175982595,146.6788,147.72,147.68,13.51113413]
[1750175984007,11.71566879,147.71,147.67,6.73973652]
[1750175984192,6.73973652,147.71,147.67,6.73973652]
[1750175984388,40.41477269,147.71,147.67,6.73973652]
[1750175984587,40.41651655,147.71,147.67,6.73973652]
[1750175985698,40.4175216,147.71,147.67,6.73973652]
[1750175986286,33.67778508,147.71,147.68,6.73973652]
[1750175986613,33.67835673,147.71,147.68,6.73973652]
[1750175987014,28.7,147.71,147.68,6.73973652]
[1750175987381,33.67802134,147.71,147.68,6.73973652]
[1750175987686,33.67802134,147.71,147.67,13.51141269]
[1750175987888,6.73973652,147.69,147.65,6.77277345]
[1750175988108,146.6788,147.7,147.66,6.73973652]
[1750175988489,146.6788,147.7,147.67,6.73973652]
[1750175988688,146.6788,147.7,147.68,6.73973652]
[1750175989584,146.6788,147.7,147.69,6.73973652]
[1750175989988,146.6788,147.7,147.69,13.51067564]
[1750175992520,15.50991362,147.73,147.69,30.43802346]
[1750175992728,15.50991362,147.73,147.71,6.73973652]
[1750175993097,20.49343977,147.73,147.71,6.73973652]
[1750175993612,15.50991362,147.73,147.71,6.73973652]
[1750175994513,15.50991362,147.73,147.7,6.73973652]
[1750175994756,15.50991362,147.73,147.69,1.6331]
[1750175994910,15.50991362,147.73,147.68,26.0]
[1750175995094,15.50991362,147.73,147.69,6.73973652]
[1750175995289,15.50991362,147.73,147.7,6.73973652]
[1750175995515,15.50991362,147.73,147.71,13.50975886]
[1750175996691,15.50991362,147.73,147.71,6.77002234]
[1750175996892,15.50991362,147.73,147.71,13.50975886]
[1750175997222,20.50165162,147.73,147.71,6.77002234]
[1750175999025,15.50991362,147.73,147.71,13.50975886]
[1750175999459,15.50991362,147.73,147.72,6.73973652]
[1750175999603,15.50991362,147.73,147.72,13.50930056]
[1750176000898,15.50991362,147.73,147.69,16.92691059]
[1750176001103,22.24965014,147.73,147.68,0.28432314]
[1750176001306,4.98928461,147.72,147.68,0.28432314]
[1750176001815,49.15783858,147.73,147.7,6.7704807]
[1750176002126,26.0,147.71,147.68,0.14216157]
[1750176002318,49.15783858,147.73,147.68,0.14216157]
[1750176002319,4.99162245,147.7,147.69,7.02405966]
[1750176002521,7.48738388,147.72,147.69,6.73973652]
[1750176002731,7.48738388,147.72,147.67,0.28432314]
[1750176002732,4.99162245,147.71,147.7,6.73973652]
[1750176002905,4.99162245,147.72,147.7,6.73973652]
[1750176003108,4.99153285,147.71,147.67,0.28432314]
[1750176003419,44.16991362,147.73,147.69,6.73973652]
[1750176003420,4.99153285,147.72,147.69,6.73973652]
[1750176003726,50.90965014,147.73,147.69,6.73973652]
[1750176003906,4.99593035,147.72,147.69,6.73973652]
[1750176004225,50.90965014,147.73,147.69,6.73973652]
[1750176004524,7.49952793,147.72,147.69,6.73973652]
[1750176004707,4.99955408,147.71,147.69,6.73973652]
[1750176004912,11.73940188,147.7,147.66,6.73973652]
[1750176005105,36.15990603,147.69,147.61,1.6624]
[1750176005306,4.99966536,147.68,147.61,1.6624]
[1750176005538,4.99966536,147.67,147.62,6.73973652]
[1750176005704,4.99966536,147.66,147.63,6.73973652]
[1750176005911,6.77169666,147.68,147.57,8.29244507]
[1750176005912,6.73973652,147.65,147.57,8.29244507]
[1750176006119,6.73973652,147.63,147.57,1.516]
[1750176006305,4.99685799,147.62,147.57,1.516]
[1750176006505,6.73973652,147.62,147.57,8.25573652]
[1750176007021,4.99707132,147.63,147.57,1.516]
[1750176007311,4.99701204,147.62,147.61,6.73973652]
[1750176007519,28.66,147.65,147.61,6.73973652]
[1750176007831,11.77106264,147.64,147.62,6.73973652]
[1750176008030,18.50263347,147.64,147.58,18.79181043]
[1750176008209,18.50263347,147.64,147.6,6.73973652]
[1750176008410,18.50437625,147.64,147.6,6.73973652]
[1750176008605,18.50437625,147.64,147.57,8.25573652]
[1750176008606,6.73973652,147.62,147.57,8.25573652]
[1750176008799,11.73053114,147.61,147.57,6.73973652]
[1750176009004,2.49538892,147.63,147.55,41.94489173]
[1750176009005,4.99079462,147.62,147.55,41.94489173]
[1750176009222,4.99079462,147.62,147.59,6.73973652]
[1750176009617,4.99098325,147.63,147.56,25.67370852]
[1750176009835,6.73973652,147.63,147.56,44.933972]
[1750176010024,6.73973652,147.62,147.58,6.73973652]
[1750176010328,4.99079395,147.63,147.59,6.73973652]
[1750176010506,11.73053047,147.63,147.59,6.73973652]
[1750176011012,4.99079395,147.63,147.6,6.73973652]
[1750176011215,6.73973652,147.63,147.59,6.73973652]
[1750176011414,6.73973652,147.63,147.56,44.933972]